Cogmind - Beta 14 @@@ ROGUE MODE // 2024.11.19 @ 00:20:35 Player: KURIIRI Result: Destroyed by Y-45 Defender with Heavy Assault Rifle Performance ------------- Evolutions (2) 1000 Regions Visited (8) 1600 Robots Destroyed (127) 635 Value Destroyed (5178) 5178 Prototype IDs (1) 20 Alien Tech Used (0) 0 Bonus (2058) 2058 TOTAL SCORE: 10491 Bonus ------- High Alert Combat Kills 1227 Follower Combat Kills 295 Entered Garrisons 400 Aligned with FarCom 300 Friendly Fire -164 Cogmind --------- Core Integrity 0/550 Matter 81/300 Energy 47/150 System Corruption 1% Temperature Danger (454) Movement Rolling (110) Ox2 Location -8/Garrison Parts ------- > --- POWER (1) -------- Micro Nuclear Core > --- PROPULSION (3) --- Armored Treads Wheel Wheel > --- UTILITY (5) ------ Improved Heat Sink Large Storage Unit Advanced Salvage Targeting Computer > --- WEAPON (2) ------- Heavy Plasma Cannon Heavy Shock Bomb Launcher > --- INVENTORY (15) --- Light Nuclear Core Armored Treads Combat Airjet Combat Airjet Antigrav System Linear Gravjet Advanced Cooling System Graphene Brace Trap Reconfigurator Long-range Proton Cannon Advanced Plasma Cannon Heavy Phase Cannon Assault Cannon Gauss Cannon Datajack Peak State ------------ > --- POWER ------------ Light Nuclear Core > --- PROPULSION ------- Light Treads Armored Huge Wheel > --- UTILITY ---------- Improved Heat Sink Large Storage Unit Improved Signal Interpreter Medium Insulated Plating Trap Reconfigurator > --- WEAPON ----------- Gauss Cannon Heavy Missile Launcher > --- INVENTORY -------- Micro Nuclear Core Armored Treads Armored Treads Combat Airjet Combat Airjet Combat Airjet Combat Airjet Kinecellerator Medium Insulated Plating Graphene Brace Heavy Plasma Cannon Heavy Plasma Cannon Gauss Cannon Gauss Cannon Datajack [Rating: 46] Favorites ----------- Power Ion Engine Engine Ion Engine Power Core Light Nuclear Core Propulsion Light Treads Treads Light Treads Wheel Armored Huge Wheel Utility Improved Signal Interpreter Device Cooling System Storage Large Storage Unit Processor Improved Signal Interpreter Protection Hardened Medium Armor Plating Weapon Beam Cannon Energy Gun Beam Rifle Energy Cannon Beam Cannon Ballistic Gun Assault Rifle Ballistic Cannon Gauss Cannon Launcher Heavy Missile Launcher Special Melee Weapon Datajack Build | -11 -10 -10 -10 -9 -8 -8 -8 -8 ------- Run | Yrd Mat Min Exi Min Mat Gar Mat Gar Slots Evolved 4 | . . . . . 4 . . . Power . | . . . . . . . . . Propulsion 1 | . . . . . 1 . . . Utility 3 | . . . . . 3 . . . Weapon . | . . . . . . . . . Parts Attached 90 | 6 10 . 1 2 30 22 13 6 Power 10 | 1 2 . . . 3 2 1 1 Engine 4 | 1 2 . . . 1 . . . Core 6 | . . . . . 2 2 1 1 Reactor . | . . . . . . . . . Propulsion 16 | 2 2 . . . 7 1 4 . Treads 13 | 2 2 . . . 6 1 2 . Leg . | . . . . . . . . . Wheel 3 | . . . . . 1 . 2 . Hover . | . . . . . . . . . Flight . | . . . . . . . . . Utility 28 | 1 3 . 1 1 12 4 4 2 Device 12 | . 1 . 1 . 6 3 1 . Storage 3 | 1 . . . 1 1 . . . Processor 2 | . . . . . 1 . . 1 Hackware . | . . . . . . . . . Protection 11 | . 2 . . . 4 1 3 1 Artifact . | . . . . . . . . . Weapon 36 | 2 3 . . 1 8 15 4 3 Energy Gun 2 | 1 1 . . . . . . . Energy Cannon 10 | . 2 . . . 4 2 . 2 Ballistic Gun 1 | 1 . . . . . . . . Ballistic Cannon 13 | . . . . . 3 8 2 . Launcher 9 | . . . . 1 1 4 2 1 Special Weapon . | . . . . . . . . . Impact Weapon . | . . . . . . . . . Slashing Weapon . | . . . . . . . . . Piercing Weapon . | . . . . . . . . . Special Melee Weapon 1 | . . . . . . 1 . . Unidentified Prototypes 1 | . . . 1 . . . . . Parts Lost 15 | . 2 . . . 7 1 3 2 Power 2 | . 1 . . . 1 . . . Propulsion 5 | . . . . . 3 . 2 . Utility 8 | . 1 . . . 3 1 1 2 Weapon . | . . . . . . . . . Highest Loss Streak 3 | . 2 . . . 3 1 2 1 To Critical Strikes . | . . . . . . . . . Average Slot Usage (%) 92 | . 97 100 100 100 88 89 88 96 Engine 7 | . 13 14 14 14 7 . . . Core 3 | . . . . . 1 9 9 9 Treads 20 | . 28 28 28 28 21 9 10 9 Wheel 3 | . . . . . 2 9 8 18 Device 13 | . 3 14 14 14 12 17 22 15 Storage 10 | . 14 14 14 14 9 9 9 9 Processor 4 | . . . . . 6 9 1 8 Protection 7 | . 8 . . . 8 9 9 9 Energy Gun 2 | . 12 . . . . . . . Energy Cannon 11 | . 3 28 28 26 12 1 . 12 Ballistic Gun 2 | . 12 . . . . . . . Ballistic Cannon 5 | . . . . . 5 13 17 1 Peak Build Rating 46 | 6 11 10 16 17 45 46 41 44 Average Rating 24 | 4 8 10 12 16 26 39 39 42 On Entrance 19 | . 6 10 10 16 17 38 41 38 Naked Turns . | . . . . . . . . . Heaviest Build 61 | 12 18 17 17 23 58 54 59 61 Greatest Support 60 | 40 40 40 40 40 60 28 40 20 Greatest Overweight (x) 5 | . . . . . 2 2 5 3 Average Overweight (x) . | . . . . . . 1 1 2 Largest Inventory Capacity 15 | 8 8 8 8 10 15 15 15 15 Average Capacity 11 | 6 8 8 8 9 12 15 15 15 Most Carried 15 | 2 8 8 8 9 15 15 15 15 Average Carried 10 | . 7 8 8 8 11 14 14 14 Final Capacity 15 | 8 8 8 8 10 15 15 15 15 Final Carried 15 | 2 8 8 8 9 15 15 14 15 Class Distribution -------------------- 95% | Mutant Dominant Class ---------------- Mutant | -10/Materials Mutant | -10/Mines Mutant | -10/Exiles Mutant | -9/Mines Mutant | -8/Materials Mutant | -8/Garrison Mutant | -8/Materials Scavenger-Mutant | -8/Garrison Resources | -11 -10 -10 -10 -9 -8 -8 -8 -8 ----------- Run | Yrd Mat Min Exi Min Mat Gar Mat Gar Matter Collected 2488 | 249 222 40 . 22 671 956 258 70 Remotely . | . . . . . . . . . Salvage Created 4345 | . 695 102 . 19 1706 774 522 527 Parts 265 | . 46 2 . . 110 46 36 25 Haulers Intercepted 5 | . 2 . . . 3 . . . Recyclers Shooed 2 | . 1 . . . . . 1 . Parts Field Recycled . | . . . . . . . . . Retrieved Matter . | . . . . . . . . . Parts Self-Destructed . | . . . . . . . . . Prevented . | . . . . . . . . . Kills | -11 -10 -10 -10 -9 -8 -8 -8 -8 ------- Run | Yrd Mat Min Exi Min Mat Gar Mat Gar Combat Hostiles Destroyed 103 | . 16 2 . 3 36 21 14 11 Guns 16 | . 16 . . . . . . . Cannons 60 | . . 2 . 1 33 13 6 5 AOE 24 | . . . . 2 1 8 8 5 Classes Destroyed 18 | . 5 . . 2 9 . 2 . Worker 5 | . 1 . . . 3 . 1 . Builder 4 | . . . . . . . 4 . Tunneler 1 | . . . . 1 . . . . Hauler 5 | . 2 . . . 3 . . . Recycler 3 | . . . . . 1 . 2 . Operator 1 | . . . . . 1 . . . Watcher 8 | . 3 . . . 4 . . 1 Swarmer 22 | . 6 . . . 7 4 2 3 Grunt 47 | . 10 2 . . 12 9 8 6 Brawler 3 | . . . . . 3 . . . Duelist 2 | . . . . . 1 . 1 . Protector 1 | . . . . . . . 1 . Sentry 15 | . . . . . 6 7 . 2 Demolisher 2 | . . . . . 1 . 1 . Specialist 2 | . . . . . 2 . . . Hunter 5 | . . . . . 3 1 1 . Heavy 1 | . . . . . 1 . . . Assembled 3 | . . . . 3 . . . . Best Kill Streak 11 | . 4 2 . 4 5 4 11 6 Combat Bots Only 9 | . 3 2 . 3 5 4 9 6 Max Kills in Single Turn 4 | . 2 1 . 3 1 3 4 2 Gunslinging 1 | . 1 . . . . . . . Exploded 3 | . . . . 2 1 3 2 2 Melee . | . . . . . . . . . Uniques/NPCs Destroyed . | . . . . . . . . . Combat | -11 -10 -10 -10 -9 -8 -8 -8 -8 -------- Run | Yrd Mat Min Exi Min Mat Gar Mat Gar Hostile Shots Fired 436 | . 75 7 . 3 168 60 64 59 Missed 125 | . 17 2 . 1 52 15 21 17 Damage Taken 4933 | . 638 72 . 52 1800 699 967 705 Core 656 | . 69 15 . 10 152 108 130 172 Absorbed by Shields 16 | . . . . . . 16 . . Redirected to Shielding 54 | . . . . . 54 . . . Ignored by Resistances 7 | . . . . . . . . 7 Regen/Repaired (Parts) 87 | . 87 . . . . . . . Core Remaining (%) 81 | 100 . . . 62 . . . . Volleys Fired 372 | . 70 5 . 8 138 91 26 34 Largest 2 | . 2 2 . 2 2 2 2 2 Hottest 180 | . 120 120 . 120 120 108 96 180 Shots Fired 637 | . 136 10 . 13 274 124 45 35 Gun 134 | . 134 . . . . . . . Cannon 483 | . 2 10 . 12 272 118 40 29 Launcher 20 | . . . . 1 2 6 5 6 Special . | . . . . . . . . . Kinetic 265 | . 65 . . . 74 86 40 . Thermal 352 | . 71 10 . 12 198 32 . 29 Explosive 14 | . . . . 1 2 6 5 . Electromagnetic 6 | . . . . . . . . 6 Robot Hit Streak 16 | . 11 5 . 6 15 16 3 12 Robot Miss Streak 6 | . 5 1 . 3 4 6 5 1 Penetration Max 1 | . . . . . 1 1 1 . Secondary Targets 2 | . 2 . . . . . . . Max Gunslinging Chain 1 | . 1 . . . . . . . Shots Hit Robots 376 | . 76 7 . 8 184 66 18 17 Core Hits 193 | . 36 3 . 6 75 28 35 10 Critical Kills 4 | . . . . . 2 . . 2 Critical Parts Destroyed . | . . . . . . . . . Critical Strikes 29 | . 4 . . . 9 8 6 2 Burn 4 | . 4 . . . . . . . Meltdown 4 | . . . . . 2 . . 2 Blast 21 | . . . . . 7 8 6 . Melee Attacks 6 | . . . . . . 6 . . Impact . | . . . . . . . . . Slashing . | . . . . . . . . . Piercing . | . . . . . . . . . Sneak Attacks 6 | . . . . . . 6 . . Combat Hostiles . | . . . . . . . . . Follow-up Attacks . | . . . . . . . . . Damage Inflicted 11593 | . 1090 146 . 297 4986 2256 1868 950 Guns 1050 | . 1050 . . . . . . . Cannons 7734 | . 18 124 . 141 4552 1653 696 550 Explosions 2754 | . . . . 156 423 603 1172 400 Melee . | . . . . . . . . . Ramming 55 | . 22 22 . . 11 . . . Kinetic 4061 | . 450 . . . 1659 1256 696 . Thermal 4723 | . 618 124 . 141 2893 397 . 550 Explosive 2193 | . . . . 156 423 603 1011 . Electromagnetic 561 | . . . . . . . 161 400 Impact . | . . . . . . . . . Slashing . | . . . . . . . . . Piercing . | . . . . . . . . . Highest Corruption 1 | . . . . . 1 1 1 1 Average Corruption 1 | . . . . . 1 1 1 1 Corruption Purged . | . . . . . . . . . Corruption Blocked . | . . . . . . . . . Effects 32 | . . . . . 11 13 6 2 Message Errors 5 | . . . . . 2 3 . . Matter Fused 11 | . . . . . 4 3 3 1 Heat Flow Errors 2 | . . . . . . 1 . 1 Energy Discharges 4 | . . . . . 2 2 . . Parts Fused 1 | . . . . . 1 . . . Data Loss (minor) 4 | . . . . . 1 2 1 . Data Loss (major) 3 | . . . . . 1 1 1 . Weapon Failures 2 | . . . . . . 1 1 . Overload Shots . | . . . . . . . . . Overflow Damage 168 | . . . . 13 40 54 45 16 Projectiles 150 | . . . . 13 40 44 37 16 Explosions 18 | . . . . . . 10 8 . Melee . | . . . . . . . . . Knockbacks 17 | . . . . . 8 5 4 . Impact . | . . . . . . . . . Kinetic 17 | . . . . . 8 5 4 . Secondary . | . . . . . . . . . Self-Inflicted Damage 114 | . . . . . 24 66 . 24 Shots 5 | . . . . . 1 2 . 2 Rammed 13 | . 8 3 . . 2 . . . Targets Rammed 14 | . 8 3 . . 3 . . . Kicked . | . . . . . . . . . Crushed 1 | . . . . . 1 . . . Highest Temperature 445 | . 322 129 . 129 32 120 92 445 Average Temperature 60 | . 84 66 . 55 10 32 25 115 Received Heat Transfer 1716 | . 282 39 . 21 495 357 216 306 Effects 3 | . 2 . . . . . . 1 Interference 1 | . 1 . . . . . . . Short Circuit 1 | . 1 . . . . . . . Damage (minor) 1 | . . . . . . . . 1 Siege Activations . | . . . . . . . . . Robots Corrupted . | . . . . . . . . . Combat Hostiles . | . . . . . . . . . Parts Fried . | . . . . . . . . . Impact Corruptions . | . . . . . . . . . Robots Melted 4 | . . . . . 2 . . 2 Combat Hostiles 3 | . . . . . 2 . . 1 Parts Melted 27 | . 4 . . 1 17 1 . 4 Heat Transferred 9027 | . 1887 259 . 296 5106 629 . 850 Parts Sabotaged . | . . . . . . . . . Parts Stolen . | . . . . . . . . . Parts Stripped . | . . . . . . . . . Power Chain Reactions 2 | . . . . . . . . 2 Alert | -11 -10 -10 -10 -9 -8 -8 -8 -8 ------- Run | Yrd Mat Min Exi Min Mat Gar Mat Gar Peak Influence 1719 | . 208 82 . 25 977 1719 1059 1048 Initial 837 | . . 2 . . 5 604 837 666 Average 456 | . 92 28 . 8 380 1067 943 784 Maximum Alert Level 5 | . 1 . . . 3 5 3 3 Low Security (%) 48 | 100 89 100 . 100 45 . . . Level 1 5 | . 10 . . . 11 . . . Level 2 11 | . . . . . 25 8 . 43 Level 3 24 | . . . . . 17 46 100 56 Level 4 7 | . . . . . . 36 . . Level 5 1 | . . . . . . 9 . . High Security . | . . . . . . . . . Max Security . | . . . . . . . . . Squads Dispatched 21 | . 4 . . 1 12 . 4 . Investigation 11 | . 4 . . 1 4 . 2 . Extermination . | . . . . . . . . . Reinforcement 4 | . . . . . 3 . 1 . Assault 2 | . . . . . 1 . 1 . Garrison 4 | . . . . . 4 . . . Intercept . | . . . . . . . . . Searches Triggered . | . . . . . . . . . Construction Impeded 1 | . . . . . . . 1 . Haulers Reinforced . | . . . . . . . . . Active Scanning Responses . | . . . . . . . . . Cargo Convoy Interrupts . | . . . . . . . . . Stealth | -11 -10 -10 -10 -9 -8 -8 -8 -8 --------- Run | Yrd Mat Min Exi Min Mat Gar Mat Gar Distress Signals 11 | . 3 . . . 7 . 1 . Communications Jammed . | . . . . . . . . . Distress Signals . | . . . . . . . . . Times Spotted 144 | . 23 2 . 6 61 24 15 13 Peak Tracking Total 8 | . 3 2 . 3 6 4 7 8 Tactical Retreats 14 | . 1 . . . 12 . . 1 Traps | -11 -10 -10 -10 -9 -8 -8 -8 -8 ------- Run | Yrd Mat Min Exi Min Mat Gar Mat Gar Traps Triggered 11 | . . . . . 1 9 1 . Indirectly . | . . . . . . . . . Trap Hack Attempts . | . . . . . . . . . Triggered . | . . . . . . . . . Disarmed . | . . . . . . . . . Reprogrammed . | . . . . . . . . . Reused 6 | . . . . . 6 . . . Traps Reconfigurated 18 | . . . . . 12 6 . . Traps Extracted . | . . . . . . . . . Installed . | . . . . . . . . . Triggered 6 | . . . . . 6 . . . Machines | -11 -10 -10 -10 -9 -8 -8 -8 -8 ---------- Run | Yrd Mat Min Exi Min Mat Gar Mat Gar Machines Disabled 21 | . 2 1 . . 4 6 2 6 Max in Single Turn 2 | . 1 1 . . 2 1 1 1 Garrison Relay 5 | . . . . . . 4 . 1 Machines Repaired . | . . . . . . . . . Machines Dismantled . | . . . . . . . . . Machines Sabotaged . | . . . . . . . . . Overloaded Fab Kills . | . . . . . . . . . Hacking | -11 -10 -10 -10 -9 -8 -8 -8 -8 --------- Run | Yrd Mat Min Exi Min Mat Gar Mat Gar Machines Accessed 28 | . 10 . 1 1 9 4 3 . Terminals 18 | . 7 . . . 6 4 1 . Fabricators . | . . . . . . . . . Repair Stations 1 | . 1 . . . . . . . Recycling Units 4 | . 2 . . . 1 . 1 . Scanalyzers 1 | . . . . . 1 . . . Garrison Access 2 | . . . . . 1 . 1 . Total Hacks 80 | . 34 . 1 1 27 9 8 . Successful 44 | . 20 . 1 1 17 1 4 . Failed 36 | . 14 . . . 10 8 4 . Catastrophic 10 | . 5 . . . . 3 2 . Database Lockouts . | . . . . . . . . . Manual 45 | . 23 . 1 . 14 1 6 . Terminals 59 | . 27 . . . 17 9 6 . Fabricators . | . . . . . . . . . Repair Stations 5 | . 5 . . . . . . . Recycling Units 4 | . 2 . . . 1 . 1 . Scanalyzers 8 | . . . . . 8 . . . Garrison Access 2 | . . . . . 1 . 1 . Terminal Hacks 17 | . 9 . 1 1 4 1 1 . Record 1 | . . . 1 . . . . . Robot Analysis 5 | . 5 . . . . . . . Open Door 2 | . . . . 1 . 1 . . Branch Access Points 1 | . . . . . 1 . . . Unreport Threat 3 | . 2 . . . . . 1 . Locate Traps 4 | . 1 . . . 3 . . . Zone Layout 1 | . 1 . . . . . . . Fabricator Hacks . | . . . . . . . . . Repair Station Hacks 4 | . 4 . . . . . . . Scan Component 2 | . 2 . . . . . . . Repair 2 | . 2 . . . . . . . Recycling Unit Hacks . | . . . . . . . . . Scanalyzer 8 | . . . . . 8 . . . Insert Component 4 | . . . . . 4 . . . Analyze 4 | . . . . . 4 . . . Garrison Access Hacks 2 | . . . . . 1 . 1 . Unlock Access 2 | . . . . . 1 . 1 . Unauthorized Hacks 13 | . 7 . . . 4 . 2 . Terminals 9 | . 5 . . . 3 . 1 . Assimilate 1 | . . . . . . . 1 . Botnet 8 | . 5 . . . 3 . . . Fabricators . | . . . . . . . . . Repair Stations . | . . . . . . . . . Recycling Units 4 | . 2 . . . 1 . 1 . Tunnel 4 | . 2 . . . 1 . 1 . Scanalyzers . | . . . . . . . . . Garrison Access . | . . . . . . . . . Data Cores Recovered . | . . . . . . . . . Used . | . . . . . . . . . Hacking Detections 20 | . 8 . . . 7 4 1 . Full Trace Events 13 | . 6 . . . 3 3 1 . Feedback Events . | . . . . . . . . . Feedback Blocked . | . . . . . . . . . Robot Schematics Acquired . | . . . . . . . . . Robots Built . | . . . . . . . . . Authchips . | . . . . . . . . . Time . | . . . . . . . . . Total Robot Build Rating . | . . . . . . . . . Part Schematics Acquired 4 | . . . . . 4 . . . Parts Built . | . . . . . . . . . Authchips . | . . . . . . . . . Time . | . . . . . . . . . Total Part Build Rating . | . . . . . . . . . Parts Repaired 2 | . 2 . . . . . . . Time 62 | . 62 . . . . . . . Parts Recycled . | . . . . . . . . . Recycled Matter . | . . . . . . . . . Retrieved Matter . | . . . . . . . . . Retrieved Components . | . . . . . . . . . Parts Scanalyzed 4 | . . . . . 4 . . . Part Schematics Acquired 4 | . . . . . 4 . . . Parts Damaged . | . . . . . . . . . Bothacking | -11 -10 -10 -10 -9 -8 -8 -8 -8 ------------ Run | Yrd Mat Min Exi Min Mat Gar Mat Gar Used RIF Installer . | . . . . . . . . . Robots Hacked . | . . . . . . . . . Non-combat . | . . . . . . . . . Combat . | . . . . . . . . . Robot Hacks Applied . | . . . . . . . . . Relay Couplers Released 24 | . . . . . . 19 . 5 Machine Destruction 24 | . . . . . . 19 . 5 Fabnet Peak Effective % . | . . . . . . . . . Robots Rewired 6 | . . . . . . 6 . . Allies Hacked . | . . . . . . . . . Hacks Repelled . | . . . . . . . . . Allies | -11 -10 -10 -10 -9 -8 -8 -8 -8 -------- Run | Yrd Mat Min Exi Min Mat Gar Mat Gar Total Allies 13 | . . 5 . 1 . 6 1 . Largest Group 5 | . . 5 5 4 2 3 4 1 Highest-Rated Group 100 | . . 86 86 71 32 90 100 10 Highest-Rated Ally 39 | . . 31 31 31 16 39 39 10 Total Orders 13 | . . . . 2 3 4 1 3 STAY 8 | . . . . 1 2 2 1 2 FOLLOW 5 | . . . . 1 1 2 . 1 Ally Attacks 66 | . . . . 10 16 25 15 . Total Damage 1011 | . . . . 88 192 525 206 . Kills 12 | . . . . 2 3 5 2 . Allies Corrupted . | . . . . . . . . . Allies Melted . | . . . . . . . . . Intel | -11 -10 -10 -10 -9 -8 -8 -8 -8 ------- Run | Yrd Mat Min Exi Min Mat Gar Mat Gar Robot Analysis Total 5 | . 5 . . . . . . . Derelict Logs Recovered 2 | . . 1 . 1 . . . . Drone Launches . | . . . . . . . . . Drone Recoveries . | . . . . . . . . . Exploration | -11 -10 -10 -10 -9 -8 -8 -8 -8 ------------- Run | Yrd Mat Min Exi Min Mat Gar Mat Gar Turns Passed 7395 | 82 1207 549 329 649 2423 1395 535 226 Spaces Moved 3625 | 47 532 327 205 245 1088 850 218 113 Core 3 | 3 . . . . . . . . Treads 2110 | 44 532 327 205 245 745 . 12 . Legs . | . . . . . . . . . Wheels 1512 | . . . . . 343 850 206 113 Hover . | . . . . . . . . . Flight . | . . . . . . . . . Fastest Speed 50 | 50 160 160 160 160 115 115 110 110 Average Speed 141 | 152 160 160 160 160 146 115 125 111 Slowest Speed 250 | 160 160 160 160 160 245 115 250 125 Overloaded Moves . | . . . . . . . . . Propulsion Burnouts . | . . . . . . . . . Robots Hopped . | . . . . . . . . . Cave-ins Triggered . | . . . . . . . . . Exploration Rate (%) 50 | 4 71 66 60 42 73 84 25 25 Regions Visited 8 Branch Regions 3 Pre-discovered Areas 6 | . 2 . 1 1 1 . 1 . Known Exits Taken 2 | . . . . . 1 . 1 . Unknown Exits Taken 5 | 1 1 1 1 1 . . . . Scrap Searched 1 | . . 1 . . . . . . Spaces Dug . | . . . . . . . . . Terrain Destroyed 143 | . . . . 11 46 45 39 2 Melee . | . . . . . . . . . Projectile 50 | . . . . . 31 1 18 . AOE 93 | . . . . 11 15 44 21 2 Terrain Rammed . | . . . . . . . . . Walls Destroyed . | . . . . . . . . . Machines Disabled . | . . . . . . . . . Actions | -11 -10 -10 -10 -9 -8 -8 -8 -8 --------- Run | Yrd Mat Min Exi Min Mat Gar Mat Gar Total 5234 | 54 749 341 206 490 1646 1138 430 180 Wait 953 | . 106 7 . 232 347 79 168 14 Move 3617 | 46 531 326 204 244 1087 849 217 113 Hop . | . . . . . . . . . Pick Up 51 | 2 14 . . 2 19 7 1 6 Fast Attach 31 | 6 5 . 1 . 11 1 5 2 Attach 12 | . 1 . . . 8 . 3 . Detach 5 | . . . . . 4 . 1 . Swap 47 | . 4 . . 2 11 21 5 4 Drop 52 | . 10 . 1 2 18 10 4 7 Fire 372 | . 70 5 . 8 138 91 26 34 Melee 6 | . . . . . . 6 . . Ram . | . . . . . . . . . Kick . | . . . . . . . . . Crush 14 | . 8 3 . . 3 . . . Escape Stasis 53 | . . . . . . 53 . . Rewire 21 | . . . . . . 21 . . Trap . | . . . . . . . . . Miscellaneous . | . . . . . . . . . Route ------- -11/Scrapyard -10/Materials (discovered 4 exits: [*Mat x3] / [*Min]) -10/Mines (discovered 3 exits: [*Mat x2] / *Exi) -10/Exiles -9/Mines -8/Materials (discovered 3 exits: [*Fac x2] / Gar) -8/Garrison (discovered 3 exits: *Mat x3) -8/Materials -8/Garrison History --------- Turn | Location | Event 4 | -11/Scrapyard | Discovered new exit (range 15) 83 | -11/Scrapyard | Entered Materials 270 | -10/Materials | Discovered new exit (range 16) 303 | -10/Materials | Build established: Mutant 473 | -10/Materials | Discovered new exit (range 16) 594 | -10/Materials | Repaired Lgt. Armor Plating 631 | -10/Materials | Repaired Broken Lgt. Treads 785 | -10/Materials | Discovered new exit (range 16) 1204 | -10/Materials | Discovered new exit (range 14) 1290 | -10/Materials | Entered Mines 1335 | -10/Mines | Learned 2 Materials zone layouts 1342 | -10/Mines | Assisted by bots powering up and referring to "LRC-V3" 1359 | -10/Mines | Discovered new exit (range 8) 1555 | -10/Mines | Discovered new exit (range 5) 1819 | -10/Mines | Deemed a non-threat by the Exiles lab entrance 1821 | -10/Mines | Discovered new exit (range 5) 1839 | -10/Mines | Entered Exiles 1839 | -10/Exiles | Accompanied by 5 allies 1869 | -10/Exiles | Led the pair of lost Derelicts to a safe place 1878 | -10/Exiles | Met 8R-AWN 1905 | -10/Exiles | Met EX-HEX 1950 | -10/Exiles | Met EX-BIN 1971 | -10/Exiles | Aligned with FarCom system 1972 | -10/Exiles | Given EX-Vault access code 2009 | -10/Exiles | Opened EX-Vault 2016 | -10/Exiles | Found Prototype Device 2016 | -10/Exiles | Identified Trap Reconfigurator 2048 | -10/Exiles | Warned to stay clear of 0b10 Research branches 2076 | -10/Exiles | Exiles lab attacked by MAIN.C 2101 | -10/Exiles | Learned location of Zion (-7) 2155 | -10/Exiles | Discovered new exit (range 10) 2168 | -10/Exiles | Left Exiles lab with Trap Reconfigurator 2168 | -10/Exiles | Entered Mines 2168 | -9/Mines | Accompanied by 3 allies 2175 | -9/Mines | Received a Rocket Launcher from a helpful Derelict 2261 | -9/Mines | Received a Mining Laser from a helpful Derelict 2264 | -9/Mines | Discovered new exit (range 7) 2334 | -9/Mines | Met a Derelict shopkeep closing up shop 2394 | -9/Mines | Assembled infested the area 2817 | -9/Mines | Entered Materials 2817 | -8/Materials | Accompanied by 2 allies 2817 | -8/Materials | Evolved 4 slots: Propulsion x1, Utility x3 3264 | -8/Materials | Garrison activated, responded to threat 4430 | -8/Materials | Lost 3 parts (1n2u) 4506 | -8/Materials | Discovered new exit (range 4) 4817 | -8/Materials | First assault squad dispatched 5157 | -8/Materials | Discovered new exit (range 5) 5198 | -8/Materials | Garrison activated, responded to threat 5238 | -8/Materials | Identified exit to Garrison 5240 | -8/Materials | Entered Garrison 5356 | -8/Garrison | Triggered checkpoint 5748 | -8/Garrison | Triggered checkpoint 5772 | -8/Garrison | Triggered checkpoint 5779 | -8/Garrison | Triggered checkpoint 5792 | -8/Garrison | Discovered new exit (range 10) 5853 | -8/Garrison | Garrison Relay disabled 5887 | -8/Garrison | Garrison Relay disabled 5968 | -8/Garrison | Discovered new exit (range 9) 5998 | -8/Garrison | Triggered checkpoint 6041 | -8/Garrison | Garrison Relay disabled 6346 | -8/Garrison | Triggered checkpoint 6396 | -8/Garrison | Discovered new exit (range 10) 6436 | -8/Garrison | Triggered checkpoint 6503 | -8/Garrison | Garrison Relay disabled 6620 | -8/Garrison | Identified exit to Materials 6635 | -8/Garrison | Entered Materials 6635 | -8/Materials | Accompanied by 3 allies 7031 | -8/Materials | Core integrity fell below 50% 7035 | -8/Materials | First assault squad dispatched 7095 | -8/Materials | Destroyed 9 combat bots 7168 | -8/Materials | Identified exit to Garrison 7170 | -8/Materials | Entered Garrison 7170 | -8/Garrison | Accompanied by 1 ally 7274 | -8/Garrison | Garrison Relay disabled 7306 | -8/Garrison | Triggered checkpoint 7323 | -8/Garrison | Triggered checkpoint 7347 | -8/Garrison | Triggered checkpoint 7354 | -8/Garrison | Core integrity fell below 20% 7396 | -8/Garrison | Destroyed by Y-45 Defender with Heavy Assault Rifle Last Messages --------------- 07362_ Acquired Med. Insulated Plating. 07366_ G-47 Trooper destroyed. 07366_ G-50 Soldier destroyed. 07366_ Chain reaction triggered in Corrupted Lgt. Ion Engine. 07370_ G-47 Trooper destroyed. 07373_ G-47 Trooper misfires. 07379_ Aluminum Leg melted. 07379_ G-47 Trooper destroyed. 07380_ Acquired 50 matter. 07380_ G-47 Trooper misfires. 07384_ Y-45 Defender misfires. 07384_ Critical hit (Burn: +37). 07387_ G-47 Trooper destroyed. 07393_ Med. Insulated Plating destroyed. 07393_ Y-45 Defender suffers critical hit (Meltdown). 07393_ Hvy. Assault Rifle melted. 07393_ Imp. Ion Engine melted. 07396_ Overheating: Wheel damaged (-2). Map ----- +----------------------------------------------------+ | ?????????????????????????????????????????????????? | | ?????????????????????????????????????????????????? | | ?????????????????????????????????????????????????? | | ?????????????????????????????????????????????????? | | ?????????????????????????????????????????????????? | | ?????????????????????????????????????????????????? | | ?????????????????????????????????????????????????? | | ?????????????????????????????????????????????????? | | ?????????????????????????????????????????????????? | | ?????????????????????????????????????????????????? | | ??????????????????????????? ?????????????????????? | | ???????????????????#"###?? #????????????????????? | | ???????????????????# ?# #????????????????????? | | ??????????????????##*= ## ##???????di??????????? | | ????????????###??? !%= ##??????????????????? | | ????????????? ?? ! ? ???????????????????? | | ????????????? ?? ? ???????????????????? | | ??????????????# ?# ## #???????????????????? | | ??????????????# ## ## ###?????????????????? | | ??????????????" * #?????????????????? | | ??????????????" % #?????????????????? | | ??????????????? #?????????????????? | | ????????????????? [ #?????????????????? | | ??????????????# ???#%= #; %#???????????????????? | | ??????????##### ##=[%=#; ##########??????????? | | ???????? ^^ *%*@ #??????????? | | ???????? ^^ %Y% #??????????? | | ???????????#### % = ###;### #??????????? | | ??????????????## ## [## ##?????# #??????????? | | ???????????????#???# [ =## #??????# #??????????? | | ???????????????????####### #??????+ #??????????? | | ?????????????????????????# #??????# #??????????? | | ?????????????????????????# +??????# #??????????? | | ?????????????????????????# #??????# #??????????? | | ?????????????????????????# #??????# #??????????? | | ?????????????????????????# ####+### ############ | | ?????????????????????????# ^^ | | ?????????????????????????# ^^ | | ?????????????????????????####### ########"####### | | ???????????????????????????????#??####### #?????# | | ??????????????????????????????????# #?????# | | ??????????????????????????????????# #####"###???# | | ????????????????????????????????????????# #"#???# | | ????????????????????????????????????????#!!"#???# | | ????????????????????????????????????????# !"#???# | | ????????????????????????????????????????# ! #???# | | ?????????????????????????????????##+#####!#"#???# | | ???????????????????????????????# ###???## | | ?????????????????????????????????#"""#### #??????? | | ????????????????????????????????????????# #??????? | +----------------------------------------------------+ Best States ------------- Heat Dissipation 53 Energy Generation 16 Energy Capacity 290 Matter Stores 300 Matter Capacity 300 Sight Range 16 Terrain Scan Density 10 Armor Coverage 600 Resistance: EM 20 Weapon Shielding 33 Evasion (%) 40 Recoil Reduction 3 Kinecelleration 30 Salvage Targeting 3 Item Schematics ----------------- Graphene Brace | -8/Materials | Scanalyzed Cmb. Airjet | -8/Materials | Scanalyzed Kinecellerator | -8/Materials | Scanalyzed Mic. Nuclear Core | -8/Materials | Scanalyzed Robot Schematics ------------------ None Fabricated ------------ Nothing Alien Tech Used ----------------- None Achievements -------------- None Challenges ------------ None Game ------ Seed CatalystMicrodissipatorSword Manual? 0 Play Time 00:59:26 Cumulative 181.9 hours Start 2024.11.18 @ 01:33:45 End 2024.11.19 @ 00:20:35 Sessions 5 Manual Loads 0 Difficulty Rogue Special Mode None Game No. 111 Rogue 75 Adventurer 36 Explorer 0 Win Type - Total 3 Types 2/0/0/1/0/0/0/0/0 Lore% 56 Gallery% 65 Achievement% 57 Wizard Run 0 Options --------- Layout 1 ASCII 0 Keyboard 0 Movement Numpad Keybinds 0 Fullscreen 1 Font 48/Smallcaps Map View 50x35 Zoom Use 0% Tactical HUD 1 Map Filters NONE Filters NONE Steam 1 RUN: 0227417d-f8dd-4529-9e4a-094ec1ea51bf